[Event "Live Chess"]
[Site "Chess.com"]
[Date "2023.09.16"]
[Round "-"]
[White "IanFLS"]
[Black "AnthonyGabriel1"]
[Result "1/2-1/2"]
[WhiteElo "1864"]
[BlackElo "2181"]
[TimeControl "900+5"]
[EndTime "6:49:54 PDT"]
[Termination "Partida empatada por acordo"]

1. d4 {[%clk 0:15:01.3]} 1... Nf6 {[%clk 0:15:02.7]} 2. Bf4 {[%clk 0:15:02.7]}
2... d6 {[%clk 0:15:06.4]} 3. Nf3 {[%clk 0:15:06]} 3... Nbd7 {[%clk 0:15:10.8]}
4. e3 {[%clk 0:15:09.3]} 4... g6 {[%clk 0:15:15.3]} 5. Nc3 {[%clk 0:15:12.8]}
5... Bg7 {[%clk 0:15:19.8]} 6. Bc4 {[%clk 0:15:14.8]} 6... O-O {[%clk 0:15:15]}
7. h3 {[%clk 0:15:18.9]} 7... c6 {[%clk 0:14:51.2]} 8. e4 {[%clk 0:15:12.6]}
8... Nb6 {[%clk 0:14:48.5]} 9. Bb3 {[%clk 0:15:16.3]} 9... d5 {[%clk 0:14:48.8]}
10. e5 {[%clk 0:15:12.7]} 10... Ne4 {[%clk 0:14:44]} 11. Qd3 {[%clk 0:15:12]}
11... Bf5 {[%clk 0:14:40.1]} 12. Qe3 {[%clk 0:14:48.7]} 12... Nxc3 {[%clk
0:14:23.3]} 13. Qxc3 {[%clk 0:14:45.7]} 13... Nc4 {[%clk 0:13:56.4]} 14. Bxc4
{[%clk 0:14:44.2]} 14... dxc4 {[%clk 0:14:00.4]} 15. Qxc4 {[%clk 0:14:47.6]}
15... Qb6 {[%clk 0:13:54.9]} 16. b3 {[%clk 0:14:36.5]} 16... Rac8 {[%clk
0:13:39.4]} 17. O-O {[%clk 0:14:36.8]} 17... h6 {[%clk 0:13:13.9]} 18. c3 {[%clk
0:14:25.1]} 18... g5 {[%clk 0:13:03.8]} 19. Be3 {[%clk 0:13:09.1]} 19... e6
{[%clk 0:12:37.3]} 20. Rfe1 {[%clk 0:12:54.9]} 20... Qc7 {[%clk 0:12:25.7]} 21.
Qe2 {[%clk 0:12:51.5]} 21... b6 {[%clk 0:12:21.7]} 22. Rac1 {[%clk 0:12:30.2]}
22... Rfd8 {[%clk 0:12:05.9]} 23. Nh2 {[%clk 0:12:14.9]} 23... c5 {[%clk
0:11:28.5]} 24. Ng4 {[%clk 0:12:05.9]} 24... Kh7 {[%clk 0:10:33.6]} 25. Nf6+
{[%clk 0:11:51.5]} 25... Bxf6 {[%clk 0:10:33.9]} 26. exf6 {[%clk 0:11:55.6]}
26... c4 {[%clk 0:10:33.6]} 27. Qh5 {[%clk 0:11:51]} 27... Bg6 {[%clk
0:10:15.3]} 28. Qf3 {[%clk 0:11:34.1]} 28... Qd7 {[%clk 0:10:16.8]} 29. Red1
{[%clk 0:11:10.7]} 29... Qd5 {[%clk 0:10:13.7]} 30. Qxd5 {[%clk 0:11:05.2]}
30... Rxd5 {[%clk 0:10:18.6]} 31. g4 {[%clk 0:10:49.2]} 31... Bd3 {[%clk
0:10:09.5]} 32. f4 {[%clk 0:10:48.6]} 32... gxf4 {[%clk 0:10:05.6]} 33. Bxf4
{[%clk 0:10:52.8]} 33... Rg8 {[%clk 0:09:28.8]} 34. Kf2 {[%clk 0:10:36.9]} 34...
h5 {[%clk 0:09:28.5]} 35. Kf3 {[%clk 0:10:37.2]} 35... Ra5 {[%clk 0:09:09]} 36.
Rd2 {[%clk 0:10:33]} 36... Kg6 {[%clk 0:08:24.4]} 37. Be5 {[%clk 0:10:33.5]}
37... hxg4+ {[%clk 0:08:16]} 38. hxg4 {[%clk 0:10:16.2]} 38... Rh8 {[%clk
0:08:19.9]} 39. Rg1 {[%clk 0:10:12.5]} 39... Rd5 {[%clk 0:07:52]} 40. b4 {[%clk
0:09:55.2]} 40... Rdd8 {[%clk 0:07:52.8]} 41. Rgg2 {[%clk 0:09:23.7]} 41... Rh3+
{[%clk 0:07:53.7]} 42. Rg3 {[%clk 0:09:23.5]} 42... Rh1 {[%clk 0:07:53.3]} 43.
Rgg2 {[%clk 0:09:23.2]} 43... Rdh8 {[%clk 0:06:29.3]} 44. Rh2 {[%clk 0:09:26.5]}
44... R8xh2 {[%clk 0:06:33.3]} 45. Rxh2 {[%clk 0:09:31.4]} 45... Rxh2 {[%clk
0:06:38.2]} 46. Bxh2 {[%clk 0:09:35.5]} 46... Kxf6 {[%clk 0:06:43.1]} 47. Kf4
{[%clk 0:09:40.1]} 47... Kg6 {[%clk 0:06:25.1]} 48. Bg3 {[%clk 0:09:42.5]} 48...
f6 {[%clk 0:06:26.9]} 49. Bh4 {[%clk 0:09:44.2]} 49... a5 {[%clk 0:05:29.9]} 50.
a3 {[%clk 0:09:43.3]} 50... axb4 {[%clk 0:05:28.1]} 51. axb4 {[%clk 0:09:46.6]}
51... b5 {[%clk 0:05:28.7]} 1/2-1/2

[Event "Live Chess"]
[Site "Chess.com"]
[Date "2023.09.16"]
[Round "-"]
[White "Mika635Isa"]
[Black "ABC2009V"]
[Result "0-1"]
[WhiteElo "520"]
[BlackElo "2023"]
[TimeControl "900+5"]
[EndTime "6:50:41 PDT"]
[Termination "ABC2009V venceu por xeque-mate"]

1. e4 {[%clk 0:15:01]} 1... c5 {[%clk 0:15:04.1]} 2. Bc4 {[%clk 0:14:53]} 2...
Nc6 {[%clk 0:15:07.4]} 3. Nf3 {[%clk 0:14:49.1]} 3... e6 {[%clk 0:15:06.4]} 4.
O-O {[%clk 0:14:37.6]} 4... Be7 {[%clk 0:15:08.6]} 5. d4 {[%clk 0:14:28]} 5...
cxd4 {[%clk 0:15:03.8]} 6. Nxd4 {[%clk 0:14:25.4]} 6... Bf6 {[%clk 0:14:51.3]}
7. Nxc6 {[%clk 0:14:22]} 7... bxc6 {[%clk 0:14:31.3]} 8. Re1 {[%clk 0:13:52.5]}
8... d6 {[%clk 0:13:50.8]} 9. Bf4 {[%clk 0:13:00.8]} 9... e5 {[%clk 0:13:39]}
10. Bg3 {[%clk 0:12:15.5]} 10... Ne7 {[%clk 0:13:37.2]} 11. Nc3 {[%clk
0:12:12.8]} 11... O-O {[%clk 0:13:37.9]} 12. f4 {[%clk 0:11:40.9]} 12... exf4
{[%clk 0:13:33.2]} 13. Bxf4 {[%clk 0:11:38.7]} 13... Be5 {[%clk 0:13:14.5]} 14.
Bxe5 {[%clk 0:11:39.4]} 14... dxe5 {[%clk 0:13:19.4]} 15. Qxd8 {[%clk
0:11:37.2]} 15... Rxd8 {[%clk 0:13:23]} 16. Rad1 {[%clk 0:11:11.3]} 16... Bg4
{[%clk 0:13:24.1]} 17. Be2 {[%clk 0:09:42.8]} 17... Bxe2 {[%clk 0:13:25.8]} 18.
Rxe2 {[%clk 0:09:36.4]} 18... Rxd1+ {[%clk 0:13:26.1]} 19. Nxd1 {[%clk
0:09:38.9]} 19... Rd8 {[%clk 0:13:23]} 20. Ne3 {[%clk 0:09:17.4]} 20... Ng6
{[%clk 0:12:19.1]} 21. b4 {[%clk 0:08:54.6]} 21... f6 {[%clk 0:12:04.7]} 22. c4
{[%clk 0:08:47.6]} 22... Nf4 {[%clk 0:12:02.7]} 23. Rc2 {[%clk 0:08:18.2]} 23...
Rb8 {[%clk 0:09:44.5]} 24. a3 {[%clk 0:07:59.1]} 24... Ne6 {[%clk 0:09:14.8]}
25. Nf5 {[%clk 0:07:41.2]} 25... Kf7 {[%clk 0:09:00.9]} 26. Rd2 {[%clk 0:06:19]}
26... Rd8 {[%clk 0:08:51.9]} 27. Rxd8 {[%clk 0:06:18.1]} 27... Nxd8 {[%clk
0:08:56.8]} 28. a4 {[%clk 0:06:10]} 28... g6 {[%clk 0:08:35.9]} 29. Nd6+ {[%clk
0:05:39.2]} 29... Ke6 {[%clk 0:08:30.9]} 30. Nc8 {[%clk 0:05:16.6]} 30... a6
{[%clk 0:08:19]} 31. Kf2 {[%clk 0:04:43.7]} 31... f5 {[%clk 0:07:54.7]} 32. Ke3
{[%clk 0:04:20.8]} 32... f4+ {[%clk 0:07:41.8]} 33. Kd3 {[%clk 0:04:12.8]} 33...
g5 {[%clk 0:07:31.2]} 34. b5 {[%clk 0:04:01.6]} 34... cxb5 {[%clk 0:07:01.9]}
35. cxb5 {[%clk 0:03:52.2]} 35... axb5 {[%clk 0:06:58.5]} 36. a5 {[%clk
0:03:53.9]} 36... Kd7 {[%clk 0:06:28.5]} 37. Nb6+ {[%clk 0:03:44.1]} 37... Kc6
{[%clk 0:06:11.6]} 38. Nc8 {[%clk 0:03:00.8]} 38... Ne6 {[%clk 0:05:57.2]} 39.
Kc3 {[%clk 0:02:13.3]} 39... g4 {[%clk 0:05:22.2]} 40. Kd2 {[%clk 0:01:26.1]}
40... Nc5 {[%clk 0:05:11.7]} 41. Ke2 {[%clk 0:01:20.7]} 41... Nxe4 {[%clk
0:04:56.2]} 42. Kd3 {[%clk 0:01:13.6]} 42... Nc5+ {[%clk 0:04:51.7]} 43. Ke2
{[%clk 0:01:01.6]} 43... Kb7 {[%clk 0:04:25.7]} 44. Nd6+ {[%clk 0:00:58.6]}
44... Ka6 {[%clk 0:04:24.6]} 45. Nf5 {[%clk 0:00:45.6]} 45... Kxa5 {[%clk
0:04:21.4]} 46. Nh4 {[%clk 0:00:31.6]} 46... b4 {[%clk 0:04:19.3]} 47. Kd2
{[%clk 0:00:35.5]} 47... Ka4 {[%clk 0:04:14.7]} 48. Kc2 {[%clk 0:00:39.1]} 48...
Ka3 {[%clk 0:04:17.2]} 49. Kb1 {[%clk 0:00:43.1]} 49... b3 {[%clk 0:04:08.7]}
50. g3 {[%clk 0:00:32.7]} 50... Ne4 {[%clk 0:04:03.7]} 51. gxf4 {[%clk
0:00:32.3]} 51... Nc3+ {[%clk 0:04:06.8]} 52. Ka1 {[%clk 0:00:29.6]} 52... b2#
{[%clk 0:04:10.6]} 0-1

[Event "Live Chess"]
[Site "Chess.com"]
[Date "2023.09.16"]
[Round "-"]
[White "GabrielGGCF"]
[Black "gu1c0rrea"]
[Result "1-0"]
[WhiteElo "1432"]
[BlackElo "804"]
[TimeControl "900+5"]
[EndTime "6:50:52 PDT"]
[Termination "GabrielGGCF venceu por xeque-mate"]

1. e4 {[%clk 0:15:03.8]} 1... e5 {[%clk 0:15:03.8]} 2. Nf3 {[%clk 0:15:08]} 2...
Nc6 {[%clk 0:15:07.3]} 3. d4 {[%clk 0:15:12.4]} 3... Qf6 {[%clk 0:15:02.9]} 4.
dxe5 {[%clk 0:15:11.5]} 4... Nxe5 {[%clk 0:15:06.8]} 5. Nxe5 {[%clk 0:15:13.7]}
5... Qxe5 {[%clk 0:15:09]} 6. Qf3 {[%clk 0:15:15.8]} 6... Nf6 {[%clk 0:15:09.3]}
7. Nc3 {[%clk 0:15:18.3]} 7... d5 {[%clk 0:14:50.6]} 8. Bd3 {[%clk 0:15:07.2]}
8... d4 {[%clk 0:14:44.5]} 9. Ne2 {[%clk 0:15:02.8]} 9... Bg4 {[%clk 0:14:34.8]}
10. Qg3 {[%clk 0:14:56]} 10... Bd6 {[%clk 0:14:31.1]} 11. f4 {[%clk 0:14:32.1]}
11... Qa5+ {[%clk 0:14:31.1]} 12. Bd2 {[%clk 0:14:30.2]} 12... Qb6 {[%clk
0:14:28]} 13. e5 {[%clk 0:14:26.3]} 13... Qxb2 {[%clk 0:14:23.6]} 14. O-O {[%clk
0:14:14.7]} 14... g6 {[%clk 0:13:57.6]} 15. exf6 {[%clk 0:14:11.2]} 15... Bxe2
{[%clk 0:13:58.6]} 16. Bxe2 {[%clk 0:14:11.1]} 16... Qxc2 {[%clk 0:14:02.5]} 17.
Qd3 {[%clk 0:14:05.7]} 17... Bc5 {[%clk 0:13:46.3]} 18. Qxc2 {[%clk 0:13:29.8]}
18... d3+ {[%clk 0:13:50.5]} 19. Qxc5 {[%clk 0:13:32.3]} 19... dxe2 {[%clk
0:13:50.5]} 20. Qe7# {[%clk 0:13:35.6]} 1-0

[Event "Live Chess"]
[Site "Chess.com"]
[Date "2023.09.16"]
[Round "-"]
[White "fernanndodod"]
[Black "migu345"]
[Result "1-0"]
[WhiteElo "1980"]
[BlackElo "1004"]
[TimeControl "900+5"]
[EndTime "6:50:54 PDT"]
[Termination "fernanndodod venceu por desistência"]

1. e4 {[%clk 0:15:03.5]} 1... e6 {[%clk 0:15:03.1]} 2. d4 {[%clk 0:15:07.1]}
2... d5 {[%clk 0:15:07.3]} 3. Nd2 {[%clk 0:15:11.5]} 3... c5 {[%clk 0:15:09.2]}
4. exd5 {[%clk 0:15:13.7]} 4... Qxd5 {[%clk 0:15:10]} 5. Ngf3 {[%clk 0:15:16.3]}
5... Nf6 {[%clk 0:15:10.8]} 6. c3 {[%clk 0:15:15.6]} 6... Ne4 {[%clk 0:15:09.2]}
7. Nxe4 {[%clk 0:15:14]} 7... Qxe4+ {[%clk 0:15:14.1]} 8. Be2 {[%clk 0:15:18.3]}
8... Bd7 {[%clk 0:15:06.3]} 9. O-O {[%clk 0:15:21.4]} 9... Nc6 {[%clk
0:15:01.6]} 10. Re1 {[%clk 0:15:23.9]} 10... Qg6 {[%clk 0:15:00.1]} 11. Bd3
{[%clk 0:15:26.3]} 11... Qf6 {[%clk 0:14:48.1]} 12. Bg5 {[%clk 0:15:26.3]} 1-0

[Event "Live Chess"]
[Site "Chess.com"]
[Date "2023.09.16"]
[Round "-"]
[White "NavarroChess09"]
[Black "AlphaKaua10"]
[Result "1-0"]
[WhiteElo "1322"]
[BlackElo "1069"]
[TimeControl "900+5"]
[EndTime "6:50:55 PDT"]
[Termination "NavarroChess09 venceu por desistência"]

1. d4 {[%clk 0:14:56.1]} 1... c5 {[%clk 0:15:02.8]} 2. Nf3 {[%clk 0:14:58.9]}
2... Nf6 {[%clk 0:15:05.2]} 3. dxc5 {[%clk 0:15:00.7]} 3... Qa5+ {[%clk
0:15:08.6]} 4. Nc3 {[%clk 0:15:04.2]} 4... Qxc5 {[%clk 0:15:12.3]} 5. Be3 {[%clk
0:15:07.1]} 5... Qd6 {[%clk 0:15:14.5]} 6. Qxd6 {[%clk 0:15:08.2]} 6... exd6
{[%clk 0:15:19.1]} 7. O-O-O {[%clk 0:15:12]} 7... Be7 {[%clk 0:15:17.3]} 8. Nd5
{[%clk 0:15:13.1]} 8... Nxd5 {[%clk 0:15:20.6]} 9. Rxd5 {[%clk 0:15:18]} 9...
O-O {[%clk 0:15:24.5]} 10. Rd2 {[%clk 0:15:18.5]} 10... b5 {[%clk 0:15:27.8]}
11. g3 {[%clk 0:15:19.9]} 11... a5 {[%clk 0:15:30.9]} 12. Bg2 {[%clk 0:15:23.9]}
12... b4 {[%clk 0:15:33.1]} 13. Nd4 {[%clk 0:15:23.6]} 13... Ra6 {[%clk
0:15:34.7]} 14. Nb5 {[%clk 0:15:22.2]} 14... a4 {[%clk 0:15:33.8]} 15. Ba7
{[%clk 0:15:18.6]} 15... Bg5 {[%clk 0:15:33.8]} 16. e3 {[%clk 0:15:19.5]} 16...
Nc6 {[%clk 0:15:33.5]} 17. Rxd6 {[%clk 0:14:57.4]} 17... a3 {[%clk 0:15:33]} 18.
b3 {[%clk 0:14:54.2]} 18... Nxa7 {[%clk 0:15:22]} 19. Rxa6 {[%clk 0:14:47.9]}
19... Bxa6 {[%clk 0:15:25.2]} 20. Nxa7 {[%clk 0:14:52.8]} 20... Re8 {[%clk
0:15:21.4]} 21. Rd1 {[%clk 0:14:48.8]} 21... Re7 {[%clk 0:15:14.7]} 22. Rd5
{[%clk 0:14:43.7]} 22... Bh6 {[%clk 0:15:12.3]} 23. Ra5 {[%clk 0:14:46.2]} 23...
Be2 {[%clk 0:15:06.1]} 24. Nc6 {[%clk 0:14:42.9]} 24... Re8 {[%clk 0:14:51.2]}
25. Nd4 {[%clk 0:14:44]} 25... Bh5 {[%clk 0:14:52]} 26. Ra7 {[%clk 0:14:42.9]}
26... f5 {[%clk 0:14:44.1]} 27. Rxd7 {[%clk 0:14:43]} 27... f4 {[%clk
0:14:34.7]} 28. Bd5+ {[%clk 0:14:43.6]} 28... Kf8 {[%clk 0:14:35.3]} 29. Ne6+
{[%clk 0:14:41.4]} 29... Kg8 {[%clk 0:14:32.9]} 30. Nc7+ {[%clk 0:14:45.5]}
30... Kf8 {[%clk 0:14:33.5]} 31. Nxe8 {[%clk 0:14:50.1]} 31... Kxe8 {[%clk
0:14:38.4]} 32. Rb7 {[%clk 0:14:50.1]} 32... fxe3 {[%clk 0:14:40.3]} 33. fxe3
{[%clk 0:14:51.2]} 33... Bxe3+ {[%clk 0:14:44.1]} 34. Kb1 {[%clk 0:14:56.1]}
34... Bd2 {[%clk 0:14:40.1]} 35. Rxg7 {[%clk 0:14:52.1]} 35... h6 {[%clk
0:14:40.4]} 36. Rg8+ {[%clk 0:14:51.8]} 36... Ke7 {[%clk 0:14:43.6]} 37. g4
{[%clk 0:14:49.9]} 37... Bf7 {[%clk 0:14:43.7]} 38. Rg7 {[%clk 0:14:48.1]} 1-0

[Event "Live Chess"]
[Site "Chess.com"]
[Date "2023.09.16"]
[Round "-"]
[White "KiwiDoFbi"]
[Black "KBT2007"]
[Result "0-1"]
[WhiteElo "1262"]
[BlackElo "1893"]
[TimeControl "900+5"]
[EndTime "6:51:10 PDT"]
[Termination "KBT2007 venceu por desistência"]

1. e4 {[%clk 0:15:03.4]} 1... c6 {[%clk 0:15:03.9]} 2. d4 {[%clk 0:15:06.1]}
2... d5 {[%clk 0:15:07.7]} 3. e5 {[%clk 0:15:10.7]} 3... Bf5 {[%clk 0:15:10.4]}
4. h4 {[%clk 0:15:15.2]} 4... h5 {[%clk 0:15:13.6]} 5. Bd3 {[%clk 0:15:13]} 5...
Bxd3 {[%clk 0:15:15.6]} 6. Qxd3 {[%clk 0:15:17.1]} 6... e6 {[%clk 0:15:19.9]} 7.
Nf3 {[%clk 0:15:18.6]} 7... Qa5+ {[%clk 0:14:53.7]} 8. Bd2 {[%clk 0:15:22.5]}
8... Qa6 {[%clk 0:14:56.7]} 9. Qxa6 {[%clk 0:15:19.5]} 9... Nxa6 {[%clk
0:14:59]} 10. Nc3 {[%clk 0:15:21.8]} 10... Ne7 {[%clk 0:14:58.9]} 11. O-O-O
{[%clk 0:15:25.2]} 11... Nf5 {[%clk 0:15:00.3]} 12. Bg5 {[%clk 0:15:21.9]} 12...
c5 {[%clk 0:14:52.8]} 13. Nb5 {[%clk 0:15:15.5]} 13... Kd7 {[%clk 0:14:47.2]}
14. c4 {[%clk 0:15:07.3]} 14... cxd4 {[%clk 0:14:35.4]} 15. Nfxd4 {[%clk
0:15:06.8]} 15... Nxd4 {[%clk 0:14:33]} 16. Rxd4 {[%clk 0:14:37.5]} 16... Bc5
{[%clk 0:14:25]} 17. Rd2 {[%clk 0:14:26.3]} 17... Rac8 {[%clk 0:14:21.2]} 18.
Kb1 {[%clk 0:14:22.9]} 18... Kc6 {[%clk 0:13:36.4]} 19. cxd5+ {[%clk 0:14:08]}
19... Kxb5 {[%clk 0:13:36.2]} 20. d6 {[%clk 0:14:12.5]} 20... Bxd6 {[%clk
0:12:25.2]} 21. exd6 {[%clk 0:14:10.3]} 21... f6 {[%clk 0:12:28.9]} 22. Be3
{[%clk 0:14:03.3]} 22... b6 {[%clk 0:12:15]} 23. f3 {[%clk 0:13:58.2]} 23...
Rcd8 {[%clk 0:12:11]} 24. Bf2 {[%clk 0:13:43.4]} 24... Rd7 {[%clk 0:12:01.2]}
25. Rd4 {[%clk 0:13:03]} 25... Rhd8 {[%clk 0:11:26.1]} 26. a4+ {[%clk
0:13:05.7]} 26... Kc6 {[%clk 0:11:26.3]} 27. Rc1+ {[%clk 0:13:00.8]} 27... Kb7
{[%clk 0:11:28.6]} 28. Rcd1 {[%clk 0:12:45.9]} 28... Nc5 {[%clk 0:11:14.3]} 29.
a5 {[%clk 0:12:05.5]} 29... Nb3 {[%clk 0:10:45.1]} 30. a6+ {[%clk 0:12:08.4]}
30... Kxa6 {[%clk 0:10:35.8]} 31. Ra4+ {[%clk 0:12:10.7]} 31... Kb7 {[%clk
0:10:39]} 32. Kc2 {[%clk 0:11:45.1]} 32... Nc5 {[%clk 0:10:18]} 33. Rb4 {[%clk
0:11:10.4]} 33... Rc8 {[%clk 0:10:15.9]} 34. Kb1 {[%clk 0:11:01.9]} 34... a5
{[%clk 0:09:46.6]} 35. Rbd4 {[%clk 0:10:54.6]} 35... e5 {[%clk 0:09:24.4]} 36.
Rd5 {[%clk 0:10:32.9]} 36... Kc6 {[%clk 0:09:00.5]} 37. Bxc5 {[%clk 0:10:27.7]}
37... bxc5 {[%clk 0:09:03]} 38. Rxc5+ {[%clk 0:10:22.9]} 38... Kxc5 {[%clk
0:08:59.3]} 39. Rc1+ {[%clk 0:10:27]} 39... Kxd6 {[%clk 0:09:03.1]} 40. Rxc8
{[%clk 0:10:30.5]} 40... Ra7 {[%clk 0:09:01.9]} 41. Rh8 {[%clk 0:10:31.3]} 41...
Ke6 {[%clk 0:08:49.4]} 42. Rxh5 {[%clk 0:10:32.9]} 42... Rd7 {[%clk 0:08:48.3]}
43. f4 {[%clk 0:10:00.2]} 43... exf4 {[%clk 0:08:11]} 44. Rxa5 {[%clk 0:10:03]}
44... Rd2 {[%clk 0:08:15]} 45. Ra4 {[%clk 0:09:46.7]} 45... Kf5 {[%clk
0:08:09.5]} 46. Ra5+ {[%clk 0:09:28.6]} 46... Kg4 {[%clk 0:08:04.5]} 47. Ra7
{[%clk 0:09:25.8]} 47... Rxg2 {[%clk 0:07:55.6]} 48. Rxg7+ {[%clk 0:09:28.4]}
48... Kh3 {[%clk 0:07:59.2]} 49. Rf7 {[%clk 0:09:15.1]} 49... Rg6 {[%clk
0:08:00.3]} 50. h5 {[%clk 0:09:17.2]} 50... Rh6 {[%clk 0:08:01.3]} 51. Ka2
{[%clk 0:09:15.4]} 51... f3 {[%clk 0:08:05.7]} 0-1

[Event "Live Chess"]
[Site "Chess.com"]
[Date "2023.09.16"]
[Round "-"]
[White "Samueeeseeel"]
[Black "sleepGM86"]
[Result "1-0"]
[WhiteElo "888"]
[BlackElo "1116"]
[TimeControl "900+5"]
[EndTime "6:51:42 PDT"]
[Termination "Samueeeseeel venceu por desistência"]

1. c4 {[%clk 0:15:01.7]} 1... c5 {[%clk 0:15:03]} 2. Nc3 {[%clk 0:15:03.3]} 2...
g6 {[%clk 0:15:07.2]} 3. g3 {[%clk 0:15:06.7]} 3... Bg7 {[%clk 0:15:10.9]} 4.
Bg2 {[%clk 0:15:10.2]} 4... Nc6 {[%clk 0:15:15.3]} 5. e4 {[%clk 0:15:12.8]} 5...
Nf6 {[%clk 0:15:19.2]} 6. Nge2 {[%clk 0:15:15.3]} 6... O-O {[%clk 0:15:23]} 7.
d3 {[%clk 0:15:17.7]} 7... e6 {[%clk 0:15:27]} 8. O-O {[%clk 0:15:21.2]} 8...
Rb8 {[%clk 0:15:22.5]} 9. Be3 {[%clk 0:15:23]} 9... b6 {[%clk 0:15:20.2]} 10. b3
{[%clk 0:15:26.8]} 10... a6 {[%clk 0:15:24.1]} 11. Rb1 {[%clk 0:15:27.2]} 11...
d6 {[%clk 0:15:23.1]} 12. a3 {[%clk 0:15:28.5]} 12... b5 {[%clk 0:15:27.1]} 13.
b4 {[%clk 0:15:23.2]} 13... bxc4 {[%clk 0:15:24.7]} 14. dxc4 {[%clk 0:15:27.7]}
14... cxb4 {[%clk 0:15:21.3]} 15. axb4 {[%clk 0:15:30.1]} 15... Rxb4 {[%clk
0:15:23]} 16. Rxb4 {[%clk 0:15:33.2]} 16... Nxb4 {[%clk 0:15:26.7]} 17. Qb1
{[%clk 0:15:32]} 17... Nc6 {[%clk 0:15:16.4]} 18. Nd4 {[%clk 0:15:22.9]} 18...
Nxd4 {[%clk 0:15:19.6]} 19. Bxd4 {[%clk 0:15:26.4]} 19... Nxe4 {[%clk 0:14:50]}
20. Qxe4 {[%clk 0:15:22]} 20... d5 {[%clk 0:14:33.2]} 21. Qe3 {[%clk 0:15:23.4]}
21... Bb7 {[%clk 0:14:34]} 22. Bxg7 {[%clk 0:15:24.2]} 22... Kxg7 {[%clk
0:14:37.6]} 23. f4 {[%clk 0:15:11]} 23... dxc4 {[%clk 0:14:38.5]} 24. Bxb7
{[%clk 0:15:12.7]} 1-0

[Event "Live Chess"]
[Site "Chess.com"]
[Date "2023.09.16"]
[Round "-"]
[White "icarohm"]
[Black "Edson_Zarnelli"]
[Result "1-0"]
[WhiteElo "1878"]
[BlackElo "764"]
[TimeControl "900+5"]
[EndTime "6:52:39 PDT"]
[Termination "icarohm venceu por desistência"]

1. e4 {[%clk 0:15:02.7]} 1... e5 {[%clk 0:15:03.8]} 2. Nf3 {[%clk 0:15:05.8]}
2... Nc6 {[%clk 0:15:07.7]} 3. Bc4 {[%clk 0:15:09.7]} 3... Bc5 {[%clk
0:15:09.8]} 4. c3 {[%clk 0:15:12.4]} 4... Nf6 {[%clk 0:15:12]} 5. d3 {[%clk
0:15:15.8]} 5... d6 {[%clk 0:15:15.3]} 6. h3 {[%clk 0:15:18.4]} 6... d5 {[%clk
0:15:01.8]} 7. exd5 {[%clk 0:15:18.2]} 7... Nxd5 {[%clk 0:15:04.8]} 8. O-O
{[%clk 0:15:21.4]} 8... O-O {[%clk 0:14:43.2]} 9. b4 {[%clk 0:15:19.1]} 9... Bb6
{[%clk 0:14:39.2]} 10. Bg5 {[%clk 0:15:00.1]} 10... f6 {[%clk 0:14:34.6]} 11.
Be3 {[%clk 0:15:03.5]} 11... Bxe3 {[%clk 0:14:33.4]} 12. fxe3 {[%clk 0:15:08.4]}
12... Be6 {[%clk 0:14:25.3]} 13. Qb3 {[%clk 0:15:01.8]} 13... Nxe3 {[%clk
0:14:22.8]} 14. Bxe6+ {[%clk 0:15:04.9]} 14... Kh8 {[%clk 0:14:24]} 15. Re1
{[%clk 0:15:09.1]} 15... Qxd3 {[%clk 0:14:19.4]} 16. Nbd2 {[%clk 0:14:54.5]}
16... Qc2 {[%clk 0:14:04.8]} 17. Rxe3 {[%clk 0:14:54.2]} 17... Qxd2 {[%clk
0:14:02.1]} 18. Nxd2 {[%clk 0:14:56.8]} 18... Rfd8 {[%clk 0:14:02.5]} 19. Nf3
{[%clk 0:14:49.7]} 1-0

[Event "Live Chess"]
[Site "Chess.com"]
[Date "2023.09.16"]
[Round "-"]
[White "fernanndodod"]
[Black "NavarroChess09"]
[Result "0-1"]
[WhiteElo "1964"]
[BlackElo "1338"]
[TimeControl "900+5"]
[EndTime "6:52:49 PDT"]
[Termination "NavarroChess09 venceu por desistência"]

1. e4 {[%clk 0:15:03.5]} 1... Nc6 {[%clk 0:15:02.8]} 2. d4 {[%clk 0:15:07.2]}
2... d5 {[%clk 0:15:04.3]} 3. e5 {[%clk 0:15:11.1]} 3... e6 {[%clk 0:15:06.4]}
4. Nf3 {[%clk 0:15:14.6]} 4... g6 {[%clk 0:15:08.3]} 5. c4 {[%clk 0:15:12.8]}
5... Bg7 {[%clk 0:15:11.9]} 6. Nc3 {[%clk 0:15:16.9]} 6... a6 {[%clk 0:15:11.2]}
7. cxd5 {[%clk 0:15:20.3]} 7... exd5 {[%clk 0:15:12.9]} 8. Qb3 {[%clk
0:15:21.6]} 8... Nge7 {[%clk 0:15:12]} 9. Bg5 {[%clk 0:15:21.9]} 9... O-O {[%clk
0:15:11.2]} 10. Nxd5 {[%clk 0:15:19.9]} 10... Qxd5 {[%clk 0:15:11.8]} 11. Bc4
{[%clk 0:15:18.5]} 11... Qa5+ {[%clk 0:15:12.8]} 12. Bd2 {[%clk 0:15:21.3]}
12... Qb6 {[%clk 0:15:10.4]} 13. Qc2 {[%clk 0:15:26.2]} 13... Nxd4 {[%clk
0:15:08.7]} 14. Nxd4 {[%clk 0:15:29.9]} 14... Qxd4 {[%clk 0:15:12.1]} 15. Bc3
{[%clk 0:15:34.8]} 15... Qxc4 {[%clk 0:15:13]} 0-1